bitfinex-derivatives/quotes_BTCF0:USTF0_20250930
["timestamp","ask_amount","ask_price","bid_price","bid_amount"]
[1759219843658,0.98134861,113830.0,113820.0,0.82209457]
[1759219850774,0.18302861,113830.0,113820.0,0.82209457]
[1759219850963,0.98126861,113830.0,113820.0,0.82209457]
[1759219853880,0.18302861,113830.0,113820.0,0.82209457]
[1759219854070,0.98126861,113830.0,113820.0,0.82209457]
[1759219855381,0.18302861,113830.0,113820.0,0.82209457]
[1759219855582,0.98126861,113830.0,113820.0,0.82209457]
[1759219856384,0.98126861,113830.0,113820.0,0.49610881]
[1759219857591,0.18302861,113830.0,113820.0,0.49610881]
[1759219858080,0.98126861,113830.0,113820.0,0.49610881]
[1759219858684,0.98126861,113830.0,113820.0,0.82129731]
[1759219860784,0.98126861,113830.0,113820.0,0.49610881]
[1759219861375,0.98126861,113830.0,113820.0,0.4488987]
[1759219864790,0.18302861,113830.0,113820.0,0.4488987]
[1759219864993,0.98122861,113830.0,113820.0,0.4488987]
[1759219865292,0.98122861,113830.0,113820.0,0.7740872]
[1759219866689,0.98122861,113830.0,113820.0,0.3610885]
[1759219866994,0.98122861,113830.0,113820.0,0.4488986]
[1759219867290,0.98122861,113830.0,113820.0,0.0474573]
[1759219867291,2.08742351,113830.0,113820.0,0.0474573]
[1759219867688,2.08410579,113830.0,113820.0,0.0474573]
[1759219867891,1.75891729,113830.0,113820.0,0.4094558]
[1759219868406,0.96071729,113830.0,113820.0,0.4972659]
[1759219868603,1.75887729,113830.0,113820.0,0.4972659]
[1759219869398,1.75887729,113830.0,113820.0,0.52888968]
[1759219870004,0.96071729,113830.0,113820.0,0.52888968]
[1759219870401,1.75887729,113830.0,113820.0,0.52888968]
[1759219870601,1.75887729,113830.0,113820.0,0.4972659]
[1759219870802,0.96071729,113830.0,113820.0,0.4972659]
[1759219870999,1.75887729,113830.0,113820.0,0.4972659]
[1759219871199,0.87291489,113830.0,113820.0,0.4972659]
[1759219871605,1.75887729,113830.0,113820.0,0.4972659]
[1759219872308,1.75887729,113830.0,113820.0,0.52888349]
[1759219872509,0.96071729,113830.0,113820.0,0.8224544]
[1759219872805,1.76187729,113830.0,113820.0,0.4972659]
[1759219874107,1.76191729,113830.0,113820.0,0.4972659]
[1759219875009,1.76187729,113830.0,113820.0,0.4972659]
[1759219875503,0.96071729,113830.0,113820.0,0.4094558]
[1759219875902,1.76171729,113830.0,113820.0,0.4094558]
[1759219876508,0.96071729,113830.0,113820.0,0.4094558]
[1759219876709,1.76163729,113830.0,113820.0,0.4094558]
[1759219877710,0.96071729,113830.0,113820.0,0.4094558]
[1759219877909,1.76163729,113830.0,113820.0,0.4094558]
[1759219881209,1.76690729,113830.0,113820.0,0.3726458]
[1759219881405,1.76163729,113830.0,113820.0,0.3726458]
[1759219881608,1.76163729,113830.0,113820.0,0.4094958]
[1759219882409,0.96071729,113830.0,113820.0,0.497306]
[1759219882609,1.76151729,113830.0,113820.0,0.497306]
[1759219882911,1.76151729,113830.0,113820.0,0.4094958]
[1759219883210,1.76151729,113830.0,113820.0,0.0843073]
[1759219883410,1.76151729,113830.0,113820.0,0.44111213]
[1759219887616,1.76151729,113830.0,113820.0,0.11592363]
[1759219887808,1.76151729,113830.0,113820.0,0.44111213]
[1759219891317,1.76151729,113830.0,113820.0,0.11592363]
[1759219891518,1.76151729,113830.0,113820.0,0.44111213]
[1759219893421,1.76151729,113830.0,113820.0,0.4094958]
[1759219893623,1.76151729,113830.0,113820.0,0.497306]
[1759219896119,1.76151729,113830.0,113820.0,0.4094958]
[1759219897820,1.76151729,113830.0,113820.0,0.07908674]
[1759219897821,1.68670579,113830.0,113820.0,0.07908674]
[1759219898320,1.68670579,113830.0,113820.0,0.03162944]
[1759219900723,0.0962402,113820.0,113810.0,0.4089058]
[1759219900917,0.47671223,113820.0,113810.0,0.4089058]
[1759219901222,0.4570402,113820.0,113810.0,0.4089058]
[1759219902726,0.4570402,113820.0,113810.0,0.4099058]
[1759219902927,0.4570402,113820.0,113810.0,0.4089058]
[1759219903122,0.4570402,113820.0,113810.0,0.4109058]
[1759219903521,0.47670904,113820.0,113810.0,0.0857173]
[1759219903717,0.47670904,113820.0,113810.0,0.4109058]
[1759219904329,0.4570402,113820.0,113810.0,0.4109058]
[1759219904722,0.47670787,113820.0,113810.0,0.4109058]
[1759219907025,0.80189637,113820.0,113810.0,0.0627573]
[1759219907225,0.80189637,113820.0,113810.0,0.3404885]
[1759219907226,1.27658787,113820.0,113810.0,0.3404885]
[1759219907817,0.47670787,113820.0,113810.0,0.3404885]
[1759219908022,1.27654787,113820.0,113810.0,0.3404885]
[1759219908829,0.47670787,113820.0,113810.0,0.3404885]
[1759219909027,1.27650787,113820.0,113810.0,0.3404885]
[1759219909217,1.27650787,113820.0,113810.0,0.3634485]
[1759219909528,1.27646787,113820.0,113810.0,0.3634485]
[1759219911631,0.47670787,113820.0,113810.0,0.3634485]
[1759219911824,1.27634787,113820.0,113810.0,0.3634485]
[1759219912930,0.47670787,113820.0,113810.0,0.3634485]
[1759219913130,1.27622787,113820.0,113810.0,0.3634485]
[1759219916124,1.27622787,113820.0,113810.0,0.002]
[1759219916523,1.27622787,113820.0,113810.0,0.3271885]
[1759219916728,1.60141637,113820.0,113810.0,0.002]
[1759219917333,0.47670787,113820.0,113810.0,0.002]
[1759219917536,1.60153637,113820.0,113810.0,0.002]
[1759219917926,0.80189637,113820.0,113810.0,0.002]
[1759219918132,1.60153637,113820.0,113810.0,0.002]
[1759219918333,1.6016874,113820.0,113810.0,0.32733953]
[1759219919529,1.6015674,113820.0,113810.0,0.32733953]
[1759219920234,1.92690693,113820.0,113810.0,0.32733953]
[1759219922036,1.27622787,113820.0,113810.0,0.32733953]
[1759219922232,2.32690693,113820.0,113810.0,0.002]
[1759219923643,2.32674693,113820.0,113810.0,0.002]
[1759219925335,2.35823799,113820.0,113810.0,0.002]
[1759219925632,1.55887799,113820.0,113810.0,0.002]
[1759219925936,2.35823799,113820.0,113810.0,0.002]
[1759219926132,2.35823799,113820.0,113790.0,0.38609683]
[1759219926340,1.14319453,113800.0,113790.0,0.33863953]
[1759219926533,1.9621422,113800.0,113790.0,0.33863953]
[1759219927939,1.9621422,113800.0,113790.0,0.35763953]
[1759219928147,0.087832,113790.0,113780.0,0.38668683]
[1759219928433,0.87984315,113790.0,113780.0,0.34837953]
[1759219928842,0.1101997,113780.0,113770.0,0.1453973]
[1759219929039,1.2705597,113780.0,113770.0,0.1453973]
[1759219929942,0.4709997,113780.0,113770.0,0.47073683]
[1759219930342,1.2704397,113780.0,113770.0,0.47073683]
[1759219930943,1.2984397,113780.0,113770.0,0.47073683]
[1759219931242,1.2984397,113780.0,113770.0,0.42327953]
[1759219931446,0.4989997,113780.0,113770.0,0.47073683]
[1759219931632,1.2983997,113780.0,113770.0,0.47073683]
[1759219932243,1.2983997,113780.0,113770.0,0.42327953]
[1759219932544,1.33489281,113780.0,113770.0,0.42327953]
[1759219933846,0.54444281,113780.0,113770.0,0.42327953]
[1759219934047,1.34388281,113780.0,113770.0,0.42327953]
[1759219936649,0.54444281,113780.0,113770.0,0.42327953]
[1759219936850,1.34372281,113780.0,113770.0,0.42327953]
[1759219938149,0.54444281,113780.0,113770.0,0.42327953]
[1759219938650,1.34344281,113780.0,113770.0,0.42327953]
[1759219941349,1.34340281,113780.0,113770.0,0.42327953]
[1759219944951,1.33429281,113780.0,113770.0,0.42327953]
[1759219947845,1.34324281,113780.0,113770.0,0.42327953]
[1759219948051,1.66858234,113780.0,113770.0,0.40969953]
[1759219949355,1.99392187,113780.0,113770.0,0.08436]
[1759219949557,1.99392187,113780.0,113770.0,0.06132]
[1759219949852,1.66858234,113780.0,113770.0,0.38665953]
[1759219950057,1.68821497,113780.0,113770.0,0.38665953]
[1759219952062,2.0135545,113780.0,113770.0,0.38665953]
[1759219952363,1.68821497,113780.0,113770.0,0.38665953]
[1759219955665,1.36287544,113780.0,113770.0,0.38665953]
[1759219955866,1.68821497,113780.0,113770.0,0.38665953]
[1759219958462,1.68821497,113780.0,113770.0,0.06132]
[1759219958666,2.0135545,113780.0,113770.0,0.38665953]
[1759219958963,2.4135545,113780.0,113770.0,0.06132]
[1759219959165,1.6147545,113780.0,113770.0,0.06132]
[1759219959366,2.4135945,113780.0,113770.0,0.06132]
[1759219959565,2.14484812,113780.0,113770.0,0.06132]
[1759219960367,2.14488812,113780.0,113770.0,0.06132]
[1759219960769,2.12525549,113780.0,113770.0,0.06132]
[1759219961468,1.32637549,113780.0,113770.0,0.06132]
[1759219961667,2.12525549,113780.0,113770.0,0.06132]
[1759219963166,1.72637549,113780.0,113770.0,0.06132]
[1759219963369,2.52525549,113780.0,113770.0,0.06132]
[1759219964967,1.72637549,113780.0,113770.0,0.06132]
[1759219965168,2.52525549,113780.0,113770.0,0.06132]
[1759219967074,2.55674655,113780.0,113770.0,0.06132]
[1759219967282,0.1240653,113760.0,113750.0,0.0182316]
[1759219967574,0.1110708,113740.0,113730.0,0.36192953]
[1759219967772,1.2707508,113740.0,113730.0,0.35952953]
[1759219967971,1.2707508,113740.0,113730.0,0.35992953]
[1759219968275,1.27081879,113740.0,113730.0,0.35952953]
[1759219968667,1.27081879,113740.0,113730.0,0.35992953]
[1759219969171,0.46593879,113740.0,113730.0,0.35992953]
[1759219969473,1.26485879,113740.0,113730.0,0.35992953]
[1759219969667,1.26485879,113740.0,113730.0,0.37192953]
[1759219970179,1.24685879,113740.0,113730.0,0.35992953]
[1759219970370,1.24685879,113740.0,113730.0,0.36392953]
[1759219970875,1.24889879,113740.0,113730.0,0.39292953]
[1759219971079,0.44993879,113740.0,113730.0,0.39292953]
[1759219971273,1.24889879,113740.0,113730.0,0.39292953]
[1759219971469,1.32054207,113740.0,113730.0,0.39292953]
[1759219972476,1.32054207,113740.0,113730.0,0.37976953]
[1759219972477,1.98017113,113740.0,113730.0,0.37976953]
[1759219972677,1.98017113,113740.0,113730.0,0.37936953]
[1759219972979,1.6548316,113740.0,113730.0,0.37976953]
[1759219974279,0.8558716,113740.0,113730.0,0.37976953]
[1759219974483,1.6548316,113740.0,113730.0,0.37976953]
[1759219975080,0.8558716,113740.0,113730.0,0.37976953]
[1759219975378,1.6548716,113740.0,113730.0,0.37976953]
[1759219979381,0.8558716,113740.0,113730.0,0.37976953]
[1759219979585,1.32957207,113740.0,113730.0,0.37976953]
[1759219979886,0.18477007,113740.0,113730.0,1.11898906]
[1759219980176,0.09691127,113740.0,113730.0,1.47978906]
[1759219980366,0.07371127,113740.0,113730.0,1.56818032]
[1759219980571,0.02142148,113740.0,113730.0,1.63148469]
[1759219980777,0.6222346,113760.0,113750.0,0.03681]
[1759219980976,0.6359746,113760.0,113750.0,0.36241191]
[1759219981182,0.9218546,113760.0,113750.0,0.36241191]
[1759219981671,0.83401,113760.0,113750.0,0.36241191]
[1759219982072,0.83401,113760.0,113750.0,0.72321191]
[1759219982269,0.03497,113760.0,113750.0,0.81106231]
[1759219982474,0.88534483,113760.0,113750.0,0.81106231]
[1759219982876,0.88938483,113760.0,113750.0,0.81106231]
[1759219983387,0.89738483,113760.0,113750.0,0.81106231]
[1759219983776,0.90538483,113760.0,113750.0,0.81106231]
[1759219984689,0.90538483,113760.0,113750.0,0.39761]
[1759219984881,0.90538483,113760.0,113750.0,0.72321191]
[1759219985381,0.99322843,113760.0,113750.0,0.72321191]
[1759219986383,0.99322843,113760.0,113750.0,0.81106481]
[1759219986787,0.90538483,113760.0,113750.0,0.81106481]
[1759219989377,0.99322923,113760.0,113750.0,0.81106481]
[1759219989985,0.90530483,113760.0,113750.0,0.81106481]
[1759219991988,0.99314953,113760.0,113750.0,0.81106481]
[1759219993086,0.10634483,113760.0,113750.0,1.21106481]
[1759219993283,0.08511483,113760.0,113750.0,1.21106481]
[1759219993484,0.08511483,113760.0,113750.0,1.22907779]
[1759219993695,0.08511483,113760.0,113750.0,1.27637768]
[1759219994974,0.08511483,113760.0,113750.0,2.07529768]
[1759219998883,0.08511483,113760.0,113750.0,2.40089959]
[1759219999591,0.08511483,113760.0,113750.0,2.07529768]
[1759219999794,0.08511483,113760.0,113750.0,1.27637768]
[1759219999993,0.08511483,113760.0,113750.0,2.07525768]
[1759220000794,0.08511483,113760.0,113750.0,2.41686407]
[1759220001396,0.08511483,113760.0,113750.0,2.09126216]
[1759220001690,0.08511483,113760.0,113750.0,1.76562025]
[1759220001896,0.08511483,113760.0,113750.0,2.09122216]
[1759220002794,0.08511483,113760.0,113750.0,2.02791779]
[1759220003191,0.08511483,113760.0,113750.0,2.09122216]
[1759220005287,0.08511483,113760.0,113750.0,1.73042216]
[1759220005494,0.08511483,113760.0,113750.0,2.45202216]
[1759220005694,0.08511483,113760.0,113750.0,1.65318216]
[1759220005894,0.08511483,113760.0,113750.0,2.45198216]
[1759220008094,0.08511483,113760.0,113750.0,1.65318216]
[1759220008297,0.08511483,113760.0,113750.0,2.45198216]
[1759220012797,0.07111483,113760.0,113750.0,2.45298216]
[1759220014098,0.06911483,113760.0,113750.0,2.45198216]
[1759220014298,0.005,113760.0,113750.0,2.45198216]
[1759220014699,0.005,113760.0,113750.0,2.45194216]
[1759220016097,0.07404446,113760.0,113750.0,2.45194216]
[1759220019103,0.07404446,113760.0,113750.0,2.77754407]
[1759220019404,0.07404446,113760.0,113750.0,2.37754407]
[1759220020603,0.07404446,113760.0,113750.0,2.05194216]
[1759220023804,0.05975703,113760.0,113750.0,1.98863779]
[1759220024005,0.14233747,113780.0,113770.0,0.1231281]
[1759220024299,0.05450707,113780.0,113770.0,0.85696927]
[1759220024605,0.14233747,113780.0,113770.0,0.85696927]
[1759220025304,0.14533747,113780.0,113770.0,0.85696927]
[1759220026093,0.21503727,113780.0,113770.0,0.85696927]
[1759220026405,0.21803727,113780.0,113770.0,0.85696927]
[1759220027607,0.13020687,113780.0,113770.0,0.85696927]
[1759220028106,0.13020687,113780.0,113770.0,0.80953001]
[1759220028311,0.10818687,113780.0,113770.0,1.67142236]
[1759220029310,0.12956687,113780.0,113770.0,0.87278236]
[1759220029608,0.12956687,113780.0,113770.0,1.67142236]
[1759220030711,0.21739767,113780.0,113770.0,1.67142236]
[1759220031602,0.23041767,113780.0,113770.0,1.34578045]
[1759220031803,0.23041767,113780.0,113770.0,1.67138236]
[1759220031999,0.21739767,113780.0,113770.0,1.67138236]
[1759220032316,0.21139767,113780.0,113770.0,1.67138236]
[1759220032512,0.21139767,113780.0,113770.0,0.87278236]
[1759220033114,0.22541767,113780.0,113770.0,1.58354426]
[1759220033414,0.22541767,113780.0,113770.0,1.52029191]
[1759220033913,0.22441767,113780.0,113770.0,1.52029191]
[1759220034211,0.23341767,113780.0,113770.0,1.52029191]
[1759220035012,0.23341767,113780.0,113770.0,0.72169191]
[1759220035213,0.23341767,113780.0,113770.0,1.60809061]
[1759220035514,0.22039767,113780.0,113770.0,1.60809061]
[1759220036012,0.22039767,113780.0,113770.0,1.67134296]
[1759220037413,0.22039767,113780.0,113770.0,0.87278296]
[1759220037614,0.22039767,113780.0,113770.0,1.67134296]
[1759220040312,0.22039767,113780.0,113770.0,1.67130296]
[1759220042216,0.22039767,113780.0,113770.0,1.67115193]
[1759220044017,0.22039767,113780.0,113770.0,0.87263193]
[1759220044215,0.22039767,113780.0,113770.0,1.67111193]
[1759220045016,0.22039767,113780.0,113770.0,0.87263193]
[1759220045214,0.22039767,113780.0,113770.0,1.67111193]
[1759220045510,0.55886855,113780.0,113770.0,1.50735088]
[1759220045715,0.55886855,113780.0,113770.0,1.14655088]
[1759220047118,0.55886855,113780.0,113770.0,0.34807088]
[1759220047818,0.55886855,113780.0,113770.0,0.43591008]
[1759220049516,0.23341767,113780.0,113770.0,0.43591008]
[1759220049818,0.55886855,113780.0,113770.0,0.43591008]
[1759220055323,0.23341767,113780.0,113770.0,0.43591008]
[1759220055524,0.55886855,113780.0,113770.0,0.44963008]
[1759220057721,0.14558687,113780.0,113770.0,0.44963008]
[1759220058027,0.94398687,113780.0,113770.0,0.51288243]
[1759220058428,1.03181967,113780.0,113770.0,0.51288243]
[1759220059434,1.02281967,113780.0,113770.0,0.51288243]
[1759220059729,0.22441967,113780.0,113770.0,0.51288243]
[1759220059932,1.02281967,113780.0,113770.0,0.51288243]
[1759220060535,1.02581967,113780.0,113770.0,0.51288243]
[1759220061240,0.22741967,113780.0,113770.0,0.51288243]
[1759220061536,1.02281967,113780.0,113770.0,0.51288243]
[1759220061737,1.02381967,113780.0,113770.0,0.51288243]
[1759220062235,0.22541967,113780.0,113770.0,0.51288243]
[1759220062437,0.92792687,113780.0,113770.0,0.54823155]
[1759220062633,0.92792687,113780.0,113770.0,0.87368243]
[1759220063336,0.92292687,113780.0,113770.0,0.87368243]
[1759220064339,1.01075977,113780.0,113770.0,0.87368243]
[1759220064936,1.00975977,113780.0,113770.0,0.87368243]
[1759220065137,1.01575977,113780.0,113770.0,0.87368243]
[1759220065337,1.01275977,113780.0,113770.0,0.87368243]
[1759220067444,0.21439977,113780.0,113770.0,0.87368243]
[1759220067740,1.01275977,113780.0,113770.0,0.87368243]
[1759220068945,1.01075977,113780.0,113770.0,0.87368243]
[1759220069241,1.00975977,113780.0,113770.0,0.87368243]
[1759220069937,1.01875977,113780.0,113770.0,0.87368243]
[1759220070135,1.03248977,113780.0,113770.0,0.87368243]
[1759220071346,1.03248977,113780.0,113770.0,0.54823155]
[1759220071549,1.03248977,113780.0,113770.0,0.87368243]
[1759220072040,1.03244977,113780.0,113770.0,0.87368243]
[1759220075445,0.23412977,113780.0,113770.0,0.87368243]
[1759220075748,1.03240977,113780.0,113770.0,0.87368243]
[1759220076139,1.03240977,113780.0,113770.0,0.81043008]
[1759220078139,1.03240977,113780.0,113770.0,0.87368243]
[1759220078948,0.23412977,113780.0,113770.0,0.87368243]
[1759220079346,1.03240977,113780.0,113770.0,0.87368243]
[1759220080448,1.03240977,113780.0,113770.0,0.85996243]
[1759220081448,1.03236977,113780.0,113770.0,0.85996243]
[1759220082749,0.23412977,113780.0,113770.0,0.85996243]
[1759220082951,1.03236977,113780.0,113770.0,0.85996243]
[1759220083552,0.23412977,113780.0,113770.0,0.87301243]
[1759220083751,1.03236977,113780.0,113770.0,0.87301243]
[1759220089551,1.03236977,113780.0,113770.0,0.85996243]
[1759220091457,0.23412977,113780.0,113770.0,0.85996243]
[1759220091655,1.03228977,113780.0,113770.0,0.85996243]
[1759220093155,0.23412977,113780.0,113770.0,0.85996243]
[1759220093351,0.22040047,113780.0,113770.0,0.87382243]
[1759220093556,1.01856047,113780.0,113770.0,0.87382243]
[1759220094455,1.01856047,113780.0,113770.0,1.19927331]
[1759220095160,1.03252047,113780.0,113770.0,0.53451155]
[1759220095355,1.03252047,113780.0,113770.0,0.85996243]
[1759220097060,1.03252047,113780.0,113770.0,0.53451155]
[1759220097260,1.03252047,113780.0,113770.0,0.85996243]
[1759220101866,0.23436047,113780.0,113770.0,0.87382243]
[1759220102054,1.01848047,113780.0,113770.0,1.19927331]
[1759220102258,0.22040047,113780.0,113770.0,0.87380851]
[1759220102459,1.01848047,113780.0,113770.0,0.87380851]
[1759220102958,0.22040047,113780.0,113770.0,0.87380851]
[1759220103168,1.01848047,113780.0,113770.0,0.87380851]
[1759220103362,0.22040047,113780.0,113770.0,0.87380851]
[1759220103562,1.01848047,113780.0,113770.0,0.87380851]
[1759220104362,0.22040047,113780.0,113770.0,0.87380851]
[1759220104564,1.01848047,113780.0,113770.0,0.87380851]
[1759220105061,1.01848047,113780.0,113770.0,0.54837155]
[1759220105263,1.01848047,113780.0,113770.0,0.87380851]
[1759220107073,0.13256687,113780.0,113770.0,0.87380851]
[1759220107367,0.22040067,113780.0,113770.0,0.87380851]
[1759220108663,0.23436067,113780.0,113770.0,0.85994851]
[1759220112169,0.23436067,113780.0,113770.0,0.87380851]
[1759220112170,1.01840067,113780.0,113770.0,0.87380851]
[1759220113175,0.93056687,113780.0,113770.0,0.87380851]
[1759220113365,0.12456687,113780.0,113770.0,0.87380851]
[1759220114665,0.12356687,113780.0,113770.0,0.87380851]
[1759220115168,0.21140057,113780.0,113770.0,0.87380851]
[1759220116073,0.21240057,113780.0,113770.0,0.87380851]
[1759220116870,0.12456687,113780.0,113770.0,0.87380851]
[1759220120171,0.12456687,113780.0,113770.0,0.81055616]
[1759220120576,0.12456687,113780.0,113770.0,0.4851192]
[1759220120872,0.12456687,113780.0,113770.0,0.81055616]
[1759220123185,0.21240057,113780.0,113770.0,0.4851192]
[1759220123372,0.21240057,113780.0,113770.0,0.81055616]
[1759220127073,0.21240057,113780.0,113770.0,0.87380851]
[1759220127474,0.12456687,113780.0,113770.0,0.87380851]
[1759220133082,0.12456687,113780.0,113770.0,1.23460851]
[1759220137786,0.22528047,113780.0,113770.0,0.87380851]
[1759220137986,0.22528047,113780.0,113770.0,0.85994851]
[1759220138483,0.22528047,113780.0,113770.0,0.87267851]
[1759220141184,0.22528047,113780.0,113770.0,0.54724155]
[1759220141389,0.22528047,113780.0,113770.0,0.87267851]
[1759220142790,0.22528047,113780.0,113770.0,0.54724155]
[1759220143086,0.22528047,113780.0,113770.0,0.87267851]
[1759220147786,0.21240047,113780.0,113770.0,0.87267851]
[1759220148389,0.12456687,113780.0,113770.0,0.87267851]
[1759220148788,0.21240047,113780.0,113770.0,0.87267851]
[1759220159408,0.12456687,113780.0,113770.0,0.87267851]
[1759220160312,0.21240047,113780.0,113770.0,0.87267851]
[1759220164216,0.21240047,113780.0,113770.0,1.19810009]
[1759220167618,0.10318687,113780.0,113770.0,1.19810009]
[1759220170710,0.10318687,113780.0,113770.0,1.13484774]
[1759220170920,0.10318687,113780.0,113770.0,1.19810009]
[1759220172122,0.10318687,113780.0,113770.0,1.13484774]
[1759220172523,0.10318687,113780.0,113770.0,1.19810009]
[1759220172725,0.19102047,113780.0,113770.0,1.99562009]
[1759220173126,0.21320047,113780.0,113770.0,1.19810009]
[1759220173325,0.21320047,113780.0,113770.0,1.99562009]
[1759220173524,0.21320047,113780.0,113770.0,1.67019082]
[1759220173831,0.21320047,113780.0,113770.0,1.19810009]
[1759220174035,0.21320047,113780.0,113770.0,1.99562009]
[1759220175727,0.21320047,113780.0,113770.0,1.19810009]
[1759220175926,0.21320047,113780.0,113770.0,1.99562009]
[1759220178229,0.21320047,113780.0,113770.0,1.19810009]
[1759220178429,0.21320047,113780.0,113770.0,1.99558009]
[1759220180629,0.12536687,113780.0,113770.0,1.99558009]
[1759220181127,0.21320047,113780.0,113770.0,1.99558009]
[1759220183126,0.21320047,113780.0,113770.0,1.19810009]
[1759220183429,0.21320047,113780.0,113770.0,1.99554009]
[1759220183832,0.21320047,113780.0,113770.0,0.87267082]
[1759220184033,0.21320047,113780.0,113770.0,1.67011082]
[1759220185232,0.21320047,113780.0,113770.0,0.87267082]
[1759220185530,0.21320047,113780.0,113770.0,1.99554009]
[1759220192338,0.21320047,113780.0,113770.0,1.34468155]
[1759220192539,0.21320047,113780.0,113770.0,1.99554009]
[1759220193437,0.21320047,113780.0,113770.0,1.99550009]
[1759220194639,0.21320047,113780.0,113770.0,1.19810009]
[1759220194840,0.21320047,113780.0,113770.0,1.99546009]
[1759220199940,0.19891423,113780.0,113770.0,1.93220774]
[1759220203043,0.19891423,113780.0,113770.0,1.13484774]
[1759220203445,0.19891423,113780.0,113770.0,1.99542009]
[1759220204745,0.19891423,113780.0,113770.0,1.19810009]
[1759220204946,0.19891423,113780.0,113770.0,1.99542009]
[1759220210152,0.19891423,113780.0,113770.0,1.19810009]
[1759220210339,0.19891423,113780.0,113770.0,1.99534009]
[1759220213053,0.19891423,113780.0,113770.0,1.63454009]
[1759220213247,0.19891423,113780.0,113770.0,1.99534009]
[1759220213948,0.08890063,113780.0,113770.0,1.99534009]
[1759220214942,0.17673423,113780.0,113770.0,1.99534009]
[1759220222753,0.0706998,113780.0,113770.0,2.35614009]
[1759220222953,0.05641442,113780.0,113770.0,3.0362813]
[1759220223155,0.1246141,113810.0,113800.0,0.1235282]
[1759220223458,0.14472092,113810.0,113800.0,0.73400809]
[1759220223659,0.94188092,113810.0,113800.0,0.73400809]
[1759220223860,0.94228092,113810.0,113800.0,0.73400809]
[1759220224250,0.9221741,113810.0,113800.0,0.73400809]
[1759220224457,0.15711091,113810.0,113800.0,0.73400809]
[1759220224651,1.27970018,113810.0,113800.0,0.40857882]
[1759220224956,1.64050018,113810.0,113800.0,0.39567882]
[1759220225462,1.65292458,113810.0,113800.0,0.39567882]
[1759220225963,1.65292458,113810.0,113800.0,0.07024955]
[1759220226263,1.32749531,113810.0,113800.0,0.07024955]
[1759220226462,1.65285041,113810.0,113800.0,0.07024955]
[1759220226858,0.85569041,113810.0,113800.0,0.07024955]
[1759220227057,1.65281041,113810.0,113800.0,0.07024955]
[1759220227258,1.65281041,113810.0,113800.0,0.02281]
[1759220227464,1.72327853,113810.0,113800.0,0.02281]
[1759220228064,1.72323853,113810.0,113800.0,0.02281]
[1759220228466,1.39788343,113810.0,113800.0,0.3481651]
[1759220233171,1.37778662,113810.0,113800.0,0.3481651]
[1759220233371,1.39794367,113810.0,113800.0,0.3481651]
[1759220233671,1.37778662,113810.0,113800.0,0.3481651]
[1759220234172,1.39794318,113810.0,113800.0,0.3481651]
[1759220235573,1.37778662,113810.0,113800.0,0.3481651]
[1759220240177,1.37778662,113810.0,113800.0,0.02281]
[1759220240476,1.37778662,113810.0,113800.0,0.3481651]
[1759220246283,1.39795384,113810.0,113800.0,0.3481651]
[1759220246978,1.37778662,113810.0,113800.0,0.3481651]
[1759220247173,1.39795685,113810.0,113800.0,0.39560465]
[1759220249086,0.60087685,113810.0,113800.0,0.39560465]
[1759220249383,1.39775685,113810.0,113800.0,0.39560465]
[1759220251083,1.72311195,113810.0,113800.0,0.04743955]
[1759220251390,0.1221481,113800.0,113790.0,0.4838974]
[1759220252193,0.1221481,113800.0,113790.0,0.436471]
[1759220253085,0.9219881,113800.0,113790.0,0.436471]
[1759220253591,0.9059081,113800.0,113790.0,0.1243859]
[1759220253792,0.9249881,113800.0,113790.0,0.4497409]
[1759220254290,0.9279081,113800.0,113790.0,0.51299363]
[1759220254482,0.9279081,113800.0,113790.0,0.4497409]
[1759220256292,0.9279081,113800.0,113790.0,0.1243858]
[1759220256495,0.9279081,113800.0,113790.0,0.4497409]
[1759220257495,0.9279081,113800.0,113790.0,0.51299363]
[1759220258697,0.9279081,113800.0,113790.0,0.4497409]
[1759220260196,0.9279081,113800.0,113790.0,0.51299363]
[1759220260695,0.9279081,113800.0,113790.0,0.4497409]
[1759220260898,0.9279081,113800.0,113790.0,0.51299363]
[1759220263398,0.9279081,113800.0,113790.0,0.4497409]
[1759220263900,0.9279081,113800.0,113790.0,0.1111158]
[1759220264089,0.9279081,113800.0,113790.0,0.4364709]
[1759220265596,0.9279081,113800.0,113790.0,0.3486451]
[1759220267707,0.9279081,113800.0,113790.0,0.02329]
[1759220268107,2.05466718,113800.0,113790.0,0.04745576]
[1759220269309,0.121975,113790.0,113780.0,0.39610086]
[1759220269606,0.482775,113790.0,113780.0,0.39610086]
[1759220270509,0.482775,113790.0,113780.0,0.48393356]
[1759220270910,1.19427,113790.0,113780.0,0.48393356]
[1759220271107,1.19519,113790.0,113780.0,0.48393356]
[1759220271809,1.283015,113790.0,113780.0,0.48393356]
[1759220272404,1.283015,113790.0,113780.0,0.15857846]
[1759220273910,0.483775,113790.0,113780.0,0.15857846]
[1759220274208,1.282895,113790.0,113780.0,0.15857846]
[1759220274514,1.282895,113790.0,113780.0,0.48393356]
[1759220275212,0.483775,113790.0,113780.0,0.48393356]
[1759220275412,1.282855,113790.0,113780.0,0.48393356]
[1759220276011,0.483775,113790.0,113780.0,0.48393356]
[1759220276211,1.283055,113790.0,113780.0,0.48393356]
[1759220276613,0.483775,113790.0,113780.0,0.48393356]
[1759220276813,1.283015,113790.0,113780.0,0.48393356]
[1759220277616,0.483775,113790.0,113780.0,0.48393356]
[1759220277811,1.283015,113790.0,113780.0,0.48393356]
[1759220278813,0.483775,113790.0,113780.0,0.48393356]
[1759220279009,1.282895,113790.0,113780.0,0.48393356]
[1759220280718,1.282895,113790.0,113780.0,0.39610086]
[1759220281019,1.282895,113790.0,113780.0,0.48393436]
[1759220281912,1.30302826,113790.0,113780.0,0.48393436]
[1759220285419,0.94222826,113790.0,113780.0,0.48393436]
[1759220285618,1.30302826,113790.0,113780.0,0.48393436]
[1759220285914,1.62838336,113790.0,113780.0,0.07074576]
[1759220286108,2.0082501,113790.0,113780.0,0.07074576]
[1759220286514,2.0082501,113790.0,113780.0,0.02329]
[1759220287121,2.0082501,113790.0,113780.0,0.07074576]
[1759220287315,2.0082501,113790.0,113780.0,0.02329]
[1759220287717,2.0082501,113790.0,113780.0,0.07074576]
[1759220288317,2.00839718,113790.0,113780.0,0.07074576]
[1759220288522,0.883775,113790.0,113780.0,0.07074576]
[1759220288724,2.00791718,113790.0,113780.0,0.39624794]
[1759220289621,2.00791718,113790.0,113780.0,0.34879218]
[1759220290712,2.02805173,113790.0,113780.0,0.34879218]
[1759220291720,2.02805173,113790.0,113780.0,0.02329]
[1759220293420,2.35355391,113790.0,113770.0,0.06534534]
[1759220293625,2.35355391,113790.0,113760.0,0.43695273]
[1759220293626,0.1219912,113770.0,113760.0,0.07020576]
[1759220293923,1.6269445,113770.0,113760.0,0.39570794]
[1759220294512,1.60665338,113770.0,113760.0,0.39570794]
[1759220294717,1.60665338,113770.0,113760.0,0.40570794]
[1759220294718,0.80829338,113770.0,113760.0,0.40570794]
[1759220294918,1.60665338,113770.0,113760.0,0.40570794]
[1759220295114,1.60665338,113770.0,113760.0,0.40070794]
[1759220295524,0.80829338,113770.0,113760.0,0.07520576]